[Event "Titled Tuesday Blitz February 22 Early 2022"]
[White "Weishaeutel, Moritz"]
[Black "Iljin, Timofey"]
[WhiteFideId "12967300"]
[BlackFideId "14110180"]
[WhiteElo "2002"]
[BlackElo "2396"]
[Result "1-0"]
[Round "05"]
[TimeControl "180+1"]
[Date "2022.02.22"]
[WhiteClock "0:00:07"]
[BlackClock "0:00:03"]

1. e4 {[%clk 0:03:00]}  e5 {[%clk 0:02:59]} 2. Nf3 {[%clk 0:03:00]}  Nc6 {[%clk 0:03:00]} 3. Bb5 {[%clk 0:02:59]}  a6 {[%clk 0:03:00]} 4. Ba4 {[%clk 0:02:59]}  Nf6 {[%clk 0:02:59]} 5. O-O {[%clk 0:02:59]}  b5 {[%clk 0:02:59]} 6. Bb3 {[%clk 0:02:59]}  Bc5 {[%clk 0:03:00]} 7. c3 {[%clk 0:02:54]}  d6 {[%clk 0:02:59]} 8. d4 {[%clk 0:02:53]}  Bb6 {[%clk 0:02:59]} 9. h3 {[%clk 0:02:52]}  O-O {[%clk 0:02:58]} 10. Re1 {[%clk 0:02:49]}  h6 {[%clk 0:02:57]} 11. Be3 {[%clk 0:02:48]}  Bb7 {[%clk 0:02:52]} 12. Nbd2 {[%clk 0:02:48]}  Re8 {[%clk 0:02:38]} 13. d5 {[%clk 0:02:40]}  Ne7 {[%clk 0:02:37]} 14. Bxb6 {[%clk 0:02:40]}  cxb6 {[%clk 0:02:38]} 15. Nf1 {[%clk 0:02:33]}  Ng6 {[%clk 0:02:38]} 16. Ng3 {[%clk 0:02:32]}  Nf4 {[%clk 0:02:36]} 17. Nh2 {[%clk 0:02:25]}  Bc8 {[%clk 0:02:23]} 18. a4 {[%clk 0:02:15]}  Bd7 {[%clk 0:02:14]} 19. axb5 {[%clk 0:02:05]}  axb5 {[%clk 0:02:13]} 20. Qf3 {[%clk 0:01:52]}  Qc7 {[%clk 0:01:46]} 21. Ng4 {[%clk 0:01:34]}  Nxg4 {[%clk 0:01:39]} 22. hxg4 {[%clk 0:01:35]}  g6 {[%clk 0:01:30]} 23. Ne2 {[%clk 0:01:14]}  Nxe2+ {[%clk 0:01:22]} 24. Qxe2 {[%clk 0:01:15]}  Ra5 {[%clk 0:01:15]} 25. Qe3 {[%clk 0:01:03]}  g5 {[%clk 0:01:04]} 26. f3 {[%clk 0:00:49]}  Rea8 {[%clk 0:00:52]} 27. Rac1 {[%clk 0:00:49]}  Qc5 {[%clk 0:00:51]} 28. Kf2 {[%clk 0:00:48]}  Kg7 {[%clk 0:00:49]} 29. Ke2 {[%clk 0:00:40]}  Qc7 {[%clk 0:00:28]} 30. Rh1 {[%clk 0:00:36]}  Qd8 {[%clk 0:00:24]} 31. Rh5 {[%clk 0:00:28]}  R5a6 {[%clk 0:00:22]} 32. Rch1 {[%clk 0:00:27]}  Qf6 {[%clk 0:00:23]} 33. Qg1 {[%clk 0:00:07]}  Rh8 {[%clk 0:00:18]} 34. Qe3 {[%clk 0:00:06]}  Qf4 {[%clk 0:00:17]} 35. Qxf4 {[%clk 0:00:06]}  exf4 {[%clk 0:00:18]} 36. Kd3 {[%clk 0:00:06]}  f6 {[%clk 0:00:14]} 37. Kd4 {[%clk 0:00:05]}  Be8 {[%clk 0:00:14]} 38. R5h2 {[%clk 0:00:04]}  Ra7 {[%clk 0:00:13]} 39. Rc1 {[%clk 0:00:05]}  Bf7 {[%clk 0:00:04]} 40. Rhh1 {[%clk 0:00:04]}  Rc8 {[%clk 0:00:03]} 41. c4 {[%clk 0:00:05]}  bxc4 {[%clk 0:00:03]} 42. Rxc4 {[%clk 0:00:05]}  Rxc4+ {[%clk 0:00:03]} 43. Bxc4 {[%clk 0:00:06]}  Ra4 {[%clk 0:00:04]} 44. Rc1 {[%clk 0:00:05]}  b5 {[%clk 0:00:04]} 45. b3 {[%clk 0:00:05]}  Ra5 {[%clk 0:00:04]} 46. Bd3 {[%clk 0:00:04]}  Ra3 {[%clk 0:00:04]} 47. Rb1 {[%clk 0:00:03]}  Ra2 {[%clk 0:00:04]} 48. Bxb5 {[%clk 0:00:02]}  Rxg2 {[%clk 0:00:05]} 49. Bd3 {[%clk 0:00:03]}  Rf2 {[%clk 0:00:03]} 50. b4 {[%clk 0:00:02]}  Be8 {[%clk 0:00:03]} 51. b5 {[%clk 0:00:02]}  Bxb5 {[%clk 0:00:03]} 52. Rxb5 {[%clk 0:00:03]}  Rxf3 {[%clk 0:00:04]} 53. Rb7+ {[%clk 0:00:04]}  Kg6 {[%clk 0:00:04]} 54. Bb5 {[%clk 0:00:04]}  h5 {[%clk 0:00:02]} 55. Be8+ {[%clk 0:00:04]}  Kh6 {[%clk 0:00:03]} 56. Bxh5 {[%clk 0:00:05]}  Rg3 {[%clk 0:00:02]} 57. Rd7 {[%clk 0:00:05]}  f3 {[%clk 0:00:02]} 58. Rxd6 {[%clk 0:00:06]}  f2 {[%clk 0:00:03]} 59. Rxf6+ {[%clk 0:00:06]}  Kg7 {[%clk 0:00:03]} 60. Rxf2 {[%clk 0:00:07]} 1-0


[Site "https://www.chess.com"]

[Event "Titled Tuesday Blitz February 22 Early 2022"]
[White "Xie, Bryan"]
[Black "Sahin, Handenur"]
[WhiteFideId "30941296"]
[BlackFideId "6334865"]
[WhiteElo "1899"]
[BlackElo "2107"]
[Result "0-1"]
[Round "05"]
[TimeControl "180+1"]
[Date "2022.02.22"]
[WhiteClock "0:00:32"]
[BlackClock "0:01:55"]

1. e4 {[%clk 0:02:54]}  e5 {[%clk 0:02:59]} 2. Nf3 {[%clk 0:02:54]}  Nc6 {[%clk 0:03:00]} 3. Bc4 {[%clk 0:02:55]}  Nf6 {[%clk 0:02:59]} 4. d3 {[%clk 0:02:55]}  Bc5 {[%clk 0:02:59]} 5. O-O {[%clk 0:02:56]}  d6 {[%clk 0:02:59]} 6. Nbd2 {[%clk 0:02:55]}  a6 {[%clk 0:02:58]} 7. a4 {[%clk 0:02:54]}  Ba7 {[%clk 0:02:57]} 8. c3 {[%clk 0:02:53]}  O-O {[%clk 0:02:54]} 9. Re1 {[%clk 0:02:53]}  Ng4 {[%clk 0:02:49]} 10. Re2 {[%clk 0:02:51]}  Ne7 {[%clk 0:02:47]} 11. h3 {[%clk 0:02:50]}  Nf6 {[%clk 0:02:45]} 12. Nf1 {[%clk 0:02:49]}  Ng6 {[%clk 0:02:45]} 13. Ng3 {[%clk 0:02:44]}  c6 {[%clk 0:02:44]} 14. a5 {[%clk 0:02:34]}  Be6 {[%clk 0:02:34]} 15. Nf5 {[%clk 0:02:28]}  Qd7 {[%clk 0:02:26]} 16. g4 {[%clk 0:02:19]}  d5 {[%clk 0:02:26]} 17. Bb3 {[%clk 0:02:16]}  Rad8 {[%clk 0:02:21]} 18. Bg5 {[%clk 0:02:15]}  dxe4 {[%clk 0:02:21]} 19. dxe4 {[%clk 0:02:09]}  Bxb3 {[%clk 0:02:19]} 20. Qxb3 {[%clk 0:02:09]}  Qd3 {[%clk 0:02:10]} 21. Bxf6 {[%clk 0:01:01]}  Qxe2 {[%clk 0:02:04]} 22. Rf1 {[%clk 0:00:38]}  Qxf3 {[%clk 0:02:01]} 23. Bxg7 {[%clk 0:00:36]}  Nf4 {[%clk 0:01:56]} 24. Bxf8 {[%clk 0:00:32]}  Qg2# {[%clk 0:01:55]} 0-1


[Site "https://www.chess.com"]

[Event "Titled Tuesday Blitz February 22 Early 2022"]
[White "Yushko, Olga"]
[Black "Bintang, Rasyid A. Hidayat"]
[WhiteFideId "14114500"]
[BlackFideId "7105355"]
[WhiteElo "2028"]
[BlackElo "2356"]
[Result "1-0"]
[Round "05"]
[TimeControl "180+1"]
[Date "2022.02.22"]
[WhiteClock "0:00:18"]
[BlackClock "0:00:05"]

1. d4 {[%clk 0:02:59]}  d5 {[%clk 0:02:56]} 2. c4 {[%clk 0:03:00]}  Nc6 {[%clk 0:02:56]} 3. Nf3 {[%clk 0:03:00]}  Bg4 {[%clk 0:02:55]} 4. e3 {[%clk 0:02:59]}  e5 {[%clk 0:02:55]} 5. dxe5 {[%clk 0:02:59]}  dxc4 {[%clk 0:02:54]} 6. Qxd8+ {[%clk 0:02:49]}  Rxd8 {[%clk 0:02:55]} 7. Bxc4 {[%clk 0:02:34]}  Nxe5 {[%clk 0:02:54]} 8. Be2 {[%clk 0:02:35]}  Nd3+ {[%clk 0:02:53]} 9. Bxd3 {[%clk 0:02:31]}  Rxd3 {[%clk 0:02:53]} 10. Nc3 {[%clk 0:02:24]}  c6 {[%clk 0:02:53]} 11. Ke2 {[%clk 0:02:23]}  Rd8 {[%clk 0:02:51]} 12. h3 {[%clk 0:02:22]}  Bxf3+ {[%clk 0:02:51]} 13. Kxf3 {[%clk 0:02:22]}  Bc5 {[%clk 0:02:51]} 14. Rd1 {[%clk 0:02:19]}  Nf6 {[%clk 0:02:50]} 15. a3 {[%clk 0:02:14]}  O-O {[%clk 0:02:48]} 16. b4 {[%clk 0:02:11]}  Bb6 {[%clk 0:02:46]} 17. Bb2 {[%clk 0:02:09]}  Rxd1 {[%clk 0:02:42]} 18. Rxd1 {[%clk 0:02:09]}  Rd8 {[%clk 0:02:43]} 19. Rxd8+ {[%clk 0:02:09]}  Bxd8 {[%clk 0:02:44]} 20. Na4 {[%clk 0:02:08]}  Nd7 {[%clk 0:02:32]} 21. Bd4 {[%clk 0:02:06]}  b6 {[%clk 0:02:23]} 22. Ke4 {[%clk 0:02:00]}  Kf8 {[%clk 0:02:22]} 23. Nb2 {[%clk 0:01:53]}  Bc7 {[%clk 0:02:21]} 24. Nd3 {[%clk 0:01:47]}  f6 {[%clk 0:02:20]} 25. Nf4 {[%clk 0:01:43]}  Ke7 {[%clk 0:02:20]} 26. Nh5 {[%clk 0:01:42]}  Kf7 {[%clk 0:02:19]} 27. Nf4 {[%clk 0:01:35]}  g5 {[%clk 0:02:16]} 28. Ne2 {[%clk 0:01:26]}  Ke6 {[%clk 0:02:10]} 29. Bc3 {[%clk 0:01:23]}  f5+ {[%clk 0:02:10]} 30. Kf3 {[%clk 0:01:22]}  Ne5+ {[%clk 0:02:04]} 31. Kg3 {[%clk 0:01:10]}  Ng4+ {[%clk 0:01:47]} 32. f4 {[%clk 0:01:10]}  Nxe3 {[%clk 0:01:42]} 33. Nd4+ {[%clk 0:01:10]}  Kd5 {[%clk 0:01:39]} 34. Kf3 {[%clk 0:01:05]}  Bxf4 {[%clk 0:01:37]} 35. g3 {[%clk 0:01:01]}  Nd1 {[%clk 0:01:05]} 36. Ba1 {[%clk 0:00:41]}  Be5 {[%clk 0:00:59]} 37. Nc2 {[%clk 0:00:18]}  Bxa1 {[%clk 0:00:58]} 38. Nxa1 {[%clk 0:00:18]}  Kc4 {[%clk 0:00:54]} 39. Ke2 {[%clk 0:00:18]}  Nc3+ {[%clk 0:00:53]} 40. Ke3 {[%clk 0:00:16]}  Nb1 {[%clk 0:00:49]} 41. Nc2 {[%clk 0:00:16]}  Kb3 {[%clk 0:00:48]} 42. Nd4+ {[%clk 0:00:16]}  Kxa3 {[%clk 0:00:48]} 43. Nxc6 {[%clk 0:00:16]}  a5 {[%clk 0:00:38]} 44. bxa5 {[%clk 0:00:16]}  bxa5 {[%clk 0:00:38]} 45. Nxa5 {[%clk 0:00:17]}  Kb4 {[%clk 0:00:36]} 46. Nc6+ {[%clk 0:00:17]}  Kc5 {[%clk 0:00:35]} 47. Ne7 {[%clk 0:00:17]}  Kd6 {[%clk 0:00:30]} 48. Nxf5+ {[%clk 0:00:17]}  Ke5 {[%clk 0:00:30]} 49. Ne7 {[%clk 0:00:17]}  Nc3 {[%clk 0:00:28]} 50. Kf3 {[%clk 0:00:16]}  Nd5 {[%clk 0:00:26]} 51. Nxd5 {[%clk 0:00:14]}  Kxd5 {[%clk 0:00:27]} 52. Kg4 {[%clk 0:00:15]}  Ke4 {[%clk 0:00:11]} 53. Kxg5 {[%clk 0:00:16]}  Kf3 {[%clk 0:00:11]} 54. g4 {[%clk 0:00:16]}  Kg3 {[%clk 0:00:11]} 55. h4 {[%clk 0:00:17]}  h6+ {[%clk 0:00:07]} 56. Kh5 {[%clk 0:00:17]}  Kf4 {[%clk 0:00:05]} 57. g5 {[%clk 0:00:17]}  hxg5 {[%clk 0:00:05]} 58. hxg5 {[%clk 0:00:18]} 1-0


[Site "https://www.chess.com"]

[Event "Titled Tuesday Blitz February 22 Early 2022"]
[White "Zaksaite, Salomeja"]
[Black "Kozelov, Roman"]
[WhiteFideId "12801496"]
[BlackFideId "14133377"]
[WhiteElo "2002"]
[BlackElo "2160"]
[Result "1-0"]
[Round "05"]
[TimeControl "180+1"]
[Date "2022.02.22"]
[WhiteClock "0:00:32"]
[BlackClock "0:00:33"]

1. e4 {[%clk 0:03:00]}  e6 {[%clk 0:02:59]} 2. d4 {[%clk 0:02:50]}  d5 {[%clk 0:02:58]} 3. Nc3 {[%clk 0:02:49]}  Bb4 {[%clk 0:02:57]} 4. e5 {[%clk 0:02:47]}  c5 {[%clk 0:02:56]} 5. a3 {[%clk 0:02:46]}  Bxc3+ {[%clk 0:02:55]} 6. bxc3 {[%clk 0:02:46]}  Ne7 {[%clk 0:02:55]} 7. Qg4 {[%clk 0:02:40]}  Kf8 {[%clk 0:02:54]} 8. Nf3 {[%clk 0:02:35]}  Qa5 {[%clk 0:02:54]} 9. Bd2 {[%clk 0:02:35]}  Qa4 {[%clk 0:02:55]} 10. Ra2 {[%clk 0:02:34]}  Nbc6 {[%clk 0:02:54]} 11. Bd3 {[%clk 0:02:31]}  a6 {[%clk 0:02:45]} 12. O-O {[%clk 0:02:30]}  b5 {[%clk 0:02:44]} 13. h4 {[%clk 0:02:24]}  h6 {[%clk 0:02:43]} 14. Qf4 {[%clk 0:02:17]}  Rb8 {[%clk 0:01:58]} 15. h5 {[%clk 0:02:16]}  Ke8 {[%clk 0:01:53]} 16. dxc5 {[%clk 0:01:43]}  Qxf4 {[%clk 0:01:53]} 17. Bxf4 {[%clk 0:01:44]}  Bd7 {[%clk 0:01:25]} 18. a4 {[%clk 0:01:40]}  b4 {[%clk 0:01:24]} 19. Bxa6 {[%clk 0:01:36]}  bxc3 {[%clk 0:01:20]} 20. Bb5 {[%clk 0:01:36]}  Nb4 {[%clk 0:01:18]} 21. Ra3 {[%clk 0:01:26]}  Bxb5 {[%clk 0:01:14]} 22. axb5 {[%clk 0:01:25]}  Nxc2 {[%clk 0:01:00]} 23. Rxc3 {[%clk 0:01:24]}  Nb4 {[%clk 0:01:00]} 24. Nd4 {[%clk 0:01:12]}  Nf5 {[%clk 0:00:58]} 25. Nxf5 {[%clk 0:01:10]}  exf5 {[%clk 0:00:58]} 26. Rb1 {[%clk 0:00:57]}  Nc6 {[%clk 0:00:54]} 27. e6 {[%clk 0:00:55]}  Rb7 {[%clk 0:00:52]} 28. Ra1 {[%clk 0:00:44]}  Rxb5 {[%clk 0:00:44]} 29. Ra8+ {[%clk 0:00:41]}  Nd8 {[%clk 0:00:45]} 30. c6 {[%clk 0:00:35]}  fxe6 {[%clk 0:00:32]} 31. c7 {[%clk 0:00:32]}  Kd7 {[%clk 0:00:33]} 32. c8=Q+ {[%clk 0:00:32]} 1-0


[Site "https://www.chess.com"]

[Event "Titled Tuesday Blitz February 22 Early 2022"]
[White "Zlatin, Alexander"]
[Black "Atakhan, Abtin"]
[WhiteFideId "2810549"]
[BlackFideId "22502203"]
[WhiteElo "2228"]
[BlackElo "2119"]
[Result "0-1"]
[Round "05"]
[TimeControl "180+1"]
[Date "2022.02.22"]
[WhiteClock "0:00:02"]
[BlackClock "0:00:06"]

1. e4 {[%clk 0:03:00]}  c6 {[%clk 0:02:58]} 2. d4 {[%clk 0:03:00]}  d5 {[%clk 0:02:59]} 3. exd5 {[%clk 0:03:01]}  cxd5 {[%clk 0:03:00]} 4. Bd3 {[%clk 0:03:02]}  Nf6 {[%clk 0:02:59]} 5. c3 {[%clk 0:03:02]}  Bg4 {[%clk 0:03:00]} 6. Qb3 {[%clk 0:02:57]}  Qc7 {[%clk 0:03:00]} 7. Nd2 {[%clk 0:02:58]}  Nc6 {[%clk 0:02:59]} 8. Ngf3 {[%clk 0:02:58]}  e6 {[%clk 0:03:00]} 9. O-O {[%clk 0:02:58]}  Bd6 {[%clk 0:03:00]} 10. h3 {[%clk 0:02:58]}  Bh5 {[%clk 0:03:00]} 11. Re1 {[%clk 0:02:57]}  O-O {[%clk 0:03:00]} 12. Bb5 {[%clk 0:02:46]}  Na5 {[%clk 0:02:52]} 13. Qc2 {[%clk 0:02:31]}  a6 {[%clk 0:02:50]} 14. Bd3 {[%clk 0:02:31]}  Nc6 {[%clk 0:02:47]} 15. Ng5 {[%clk 0:02:19]}  h6 {[%clk 0:02:31]} 16. Ngf3 {[%clk 0:02:19]}  Ne7 {[%clk 0:02:15]} 17. Ne5 {[%clk 0:02:11]}  Bxe5 {[%clk 0:02:12]} 18. Rxe5 {[%clk 0:02:10]}  Bg6 {[%clk 0:02:10]} 19. Nf3 {[%clk 0:02:04]}  Bxd3 {[%clk 0:02:09]} 20. Qxd3 {[%clk 0:02:05]}  Ng6 {[%clk 0:02:09]} 21. Re2 {[%clk 0:02:02]}  Ne4 {[%clk 0:02:09]} 22. Be3 {[%clk 0:01:53]}  b5 {[%clk 0:02:08]} 23. a4 {[%clk 0:01:48]}  Qc4 {[%clk 0:01:43]} 24. Qxc4 {[%clk 0:01:28]}  bxc4 {[%clk 0:01:43]} 25. Nd2 {[%clk 0:01:22]}  Nxd2 {[%clk 0:01:31]} 26. Rxd2 {[%clk 0:01:17]}  Rfb8 {[%clk 0:01:31]} 27. g4 {[%clk 0:01:05]}  Ne7 {[%clk 0:01:22]} 28. Bf4 {[%clk 0:01:04]}  Rb3 {[%clk 0:01:11]} 29. Bd6 {[%clk 0:01:03]}  Nc6 {[%clk 0:01:10]} 30. f4 {[%clk 0:01:02]}  Ra7 {[%clk 0:01:02]} 31. Kf1 {[%clk 0:00:59]}  Rab7 {[%clk 0:00:59]} 32. Ba3 {[%clk 0:00:58]}  a5 {[%clk 0:00:42]} 33. Ke1 {[%clk 0:00:57]}  Nb4 {[%clk 0:00:37]} 34. Bxb4 {[%clk 0:00:43]}  axb4 {[%clk 0:00:38]} 35. cxb4 {[%clk 0:00:43]}  R7xb4 {[%clk 0:00:27]} 36. a5 {[%clk 0:00:33]}  Rb7 {[%clk 0:00:23]} 37. a6 {[%clk 0:00:30]}  Ra7 {[%clk 0:00:24]} 38. h4 {[%clk 0:00:25]}  Rb6 {[%clk 0:00:21]} 39. Kd1 {[%clk 0:00:19]}  Kf8 {[%clk 0:00:17]} 40. Kc2 {[%clk 0:00:19]}  Ke7 {[%clk 0:00:18]} 41. Re2 {[%clk 0:00:14]}  Rbxa6 {[%clk 0:00:15]} 42. Rxa6 {[%clk 0:00:14]}  Rxa6 {[%clk 0:00:16]} 43. f5 {[%clk 0:00:13]}  Ra1 {[%clk 0:00:13]} 44. Kc3 {[%clk 0:00:13]}  Rd1 {[%clk 0:00:10]} 45. Kb4 {[%clk 0:00:12]}  Rxd4 {[%clk 0:00:10]} 46. Kc5 {[%clk 0:00:12]}  Rxg4 {[%clk 0:00:10]} 47. fxe6 {[%clk 0:00:13]}  fxe6 {[%clk 0:00:10]} 48. Rh2 {[%clk 0:00:13]}  h5 {[%clk 0:00:09]} 49. Kc6 {[%clk 0:00:13]}  d4 {[%clk 0:00:09]} 50. Kc5 {[%clk 0:00:13]}  d3 {[%clk 0:00:09]} 51. Kb5 {[%clk 0:00:10]}  Re4 {[%clk 0:00:08]} 52. Kb4 {[%clk 0:00:10]}  Kd6 {[%clk 0:00:08]} 53. Kc3 {[%clk 0:00:10]}  Kd5 {[%clk 0:00:06]} 54. Rg2 {[%clk 0:00:11]}  Re2 {[%clk 0:00:05]} 55. Rg5+ {[%clk 0:00:11]}  e5 {[%clk 0:00:06]} 56. Rxg7 {[%clk 0:00:10]}  Rc2+ {[%clk 0:00:06]} 57. Kb4 {[%clk 0:00:10]}  Rxb2+ {[%clk 0:00:06]} 58. Kc3 {[%clk 0:00:11]}  Rc2+ {[%clk 0:00:06]} 59. Kb4 {[%clk 0:00:11]}  Kd4 {[%clk 0:00:04]} 60. Rc7 {[%clk 0:00:04]}  Rb2+ {[%clk 0:00:03]} 61. Ka3 {[%clk 0:00:04]}  Rb3+ {[%clk 0:00:04]} 62. Ka2 {[%clk 0:00:04]}  d2 {[%clk 0:00:05]} 63. Rd7+ {[%clk 0:00:05]}  Kc3 {[%clk 0:00:05]} 64. Rc7 {[%clk 0:00:02]}  Rb2+ {[%clk 0:00:05]} 65. Ka3 {[%clk 0:00:02]}  Rb8 {[%clk 0:00:06]} 0-1


[Site "https://www.chess.com"]

[Event "Titled Tuesday Blitz February 22 Early 2022"]
[White "Agibileg, Uurtsaikh"]
[Black "Piesik, Piotr"]
[WhiteFideId "4901606"]
[BlackFideId "1136194"]
[WhiteElo "2205"]
[BlackElo "2232"]
[Result "0-1"]
[Round "06"]
[TimeControl "180+1"]
[Date "2022.02.22"]
[WhiteClock "0:00:04"]
[BlackClock "0:00:31"]

1. d4 {[%clk 0:02:58]}  c5 {[%clk 0:02:59]} 2. d5 {[%clk 0:02:57]}  e5 {[%clk 0:02:59]} 3. e4 {[%clk 0:02:55]}  d6 {[%clk 0:02:59]} 4. Nc3 {[%clk 0:02:54]}  Be7 {[%clk 0:02:59]} 5. Bd3 {[%clk 0:02:53]}  Bg5 {[%clk 0:02:58]} 6. Nf3 {[%clk 0:02:44]}  Bxc1 {[%clk 0:02:57]} 7. Qxc1 {[%clk 0:02:44]}  Ne7 {[%clk 0:02:58]} 8. O-O {[%clk 0:02:44]}  O-O {[%clk 0:02:58]} 9. Nd2 {[%clk 0:02:43]}  Ng6 {[%clk 0:02:58]} 10. g3 {[%clk 0:02:42]}  Bh3 {[%clk 0:02:56]} 11. Re1 {[%clk 0:02:41]}  a6 {[%clk 0:02:54]} 12. a4 {[%clk 0:02:41]}  Nd7 {[%clk 0:02:53]} 13. Nc4 {[%clk 0:02:38]}  Nf6 {[%clk 0:02:53]} 14. Bf1 {[%clk 0:02:38]}  Bxf1 {[%clk 0:02:51]} 15. Rxf1 {[%clk 0:02:39]}  Ne8 {[%clk 0:02:48]} 16. a5 {[%clk 0:02:36]}  Ne7 {[%clk 0:02:46]} 17. Nb6 {[%clk 0:02:36]}  Rb8 {[%clk 0:02:46]} 18. Qg5 {[%clk 0:02:30]}  h6 {[%clk 0:02:44]} 19. Qh4 {[%clk 0:02:29]}  f5 {[%clk 0:02:42]} 20. f4 {[%clk 0:02:17]}  exf4 {[%clk 0:02:39]} 21. Qxf4 {[%clk 0:01:57]}  Ng6 {[%clk 0:02:34]} 22. Qf2 {[%clk 0:01:52]}  f4 {[%clk 0:02:26]} 23. Ne2 {[%clk 0:01:47]}  f3 {[%clk 0:02:23]} 24. Ra3 {[%clk 0:01:46]}  fxe2 {[%clk 0:02:21]} 25. Qxe2 {[%clk 0:01:45]}  Rxf1+ {[%clk 0:02:20]} 26. Qxf1 {[%clk 0:01:46]}  Ne5 {[%clk 0:02:18]} 27. Qf5 {[%clk 0:01:41]}  Qe7 {[%clk 0:02:13]} 28. Ra1 {[%clk 0:01:38]}  Nc7 {[%clk 0:02:07]} 29. Rf1 {[%clk 0:01:37]}  Rf8 {[%clk 0:02:06]} 30. Qxf8+ {[%clk 0:01:28]}  Qxf8 {[%clk 0:02:07]} 31. Rxf8+ {[%clk 0:01:29]}  Kxf8 {[%clk 0:02:08]} 32. Kf2 {[%clk 0:01:26]}  Ke7 {[%clk 0:02:03]} 33. h3 {[%clk 0:01:25]}  Ne8 {[%clk 0:02:03]} 34. Ke3 {[%clk 0:01:21]}  Kd8 {[%clk 0:02:01]} 35. c3 {[%clk 0:01:19]}  Nf6 {[%clk 0:02:01]} 36. b4 {[%clk 0:01:16]}  cxb4 {[%clk 0:01:59]} 37. cxb4 {[%clk 0:01:17]}  Nfd7 {[%clk 0:01:58]} 38. Na4 {[%clk 0:01:11]}  g5 {[%clk 0:01:56]} 39. Nb2 {[%clk 0:01:09]}  Nf6 {[%clk 0:01:47]} 40. Nd1 {[%clk 0:01:04]}  h5 {[%clk 0:01:46]} 41. Kd4 {[%clk 0:01:01]}  Kd7 {[%clk 0:01:25]} 42. Ne3 {[%clk 0:01:00]}  Nf3+ {[%clk 0:01:21]} 43. Kd3 {[%clk 0:01:00]}  Ng1 {[%clk 0:01:20]} 44. h4 {[%clk 0:00:55]}  gxh4 {[%clk 0:01:20]} 45. gxh4 {[%clk 0:00:56]}  Nf3 {[%clk 0:01:20]} 46. Nf5 {[%clk 0:00:55]}  Ng4 {[%clk 0:01:17]} 47. Ke2 {[%clk 0:00:43]}  Nfe5 {[%clk 0:01:14]} 48. Ng7 {[%clk 0:00:39]}  Nf6 {[%clk 0:01:14]} 49. Ke3 {[%clk 0:00:39]}  Ng6 {[%clk 0:01:12]} 50. Nf5 {[%clk 0:00:38]}  Ng4+ {[%clk 0:01:01]} 51. Kf3 {[%clk 0:00:32]}  N4e5+ {[%clk 0:01:01]} 52. Ke3 {[%clk 0:00:25]}  Ne7 {[%clk 0:00:58]} 53. Ng7 {[%clk 0:00:22]}  N5g6 {[%clk 0:00:58]} 54. Nxh5 {[%clk 0:00:21]}  Nxh4 {[%clk 0:00:59]} 55. Nf6+ {[%clk 0:00:20]}  Kc7 {[%clk 0:00:56]} 56. Ne8+ {[%clk 0:00:20]}  Kd7 {[%clk 0:00:56]} 57. Nf6+ {[%clk 0:00:21]}  Kd8 {[%clk 0:00:57]} 58. e5 {[%clk 0:00:18]}  dxe5 {[%clk 0:00:56]} 59. Ke4 {[%clk 0:00:18]}  Nhg6 {[%clk 0:00:56]} 60. Ng4 {[%clk 0:00:17]}  Kd7 {[%clk 0:00:52]} 61. Ne3 {[%clk 0:00:17]}  Nc8 {[%clk 0:00:50]} 62. Kf5 {[%clk 0:00:17]}  Nce7+ {[%clk 0:00:48]} 63. Ke4 {[%clk 0:00:17]}  Nf4 {[%clk 0:00:47]} 64. Kxe5 {[%clk 0:00:16]}  Nd3+ {[%clk 0:00:47]} 65. Kd4 {[%clk 0:00:16]}  Nxb4 {[%clk 0:00:47]} 66. Kc5 {[%clk 0:00:15]}  Na2 {[%clk 0:00:46]} 67. Kb6 {[%clk 0:00:15]}  Kc8 {[%clk 0:00:44]} 68. d6 {[%clk 0:00:12]}  Nc6 {[%clk 0:00:42]} 69. Nd5 {[%clk 0:00:08]}  Nab4 {[%clk 0:00:39]} 70. Nf6 {[%clk 0:00:07]}  Nb8 {[%clk 0:00:36]} 71. Ka7 {[%clk 0:00:03]}  N4c6+ {[%clk 0:00:36]} 72. Ka8 {[%clk 0:00:03]}  Nd7 {[%clk 0:00:32]} 73. Nd5 {[%clk 0:00:03]}  Nxa5 {[%clk 0:00:32]} 74. Ka7 {[%clk 0:00:03]}  Nc6+ {[%clk 0:00:31]} 75. Ka8 {[%clk 0:00:03]}  b5 {[%clk 0:00:31]} 76. Ne7+ {[%clk 0:00:03]}  Nxe7 {[%clk 0:00:30]} 77. dxe7 {[%clk 0:00:03]}  Nf6 {[%clk 0:00:31]} 78. Ka7 {[%clk 0:00:04]}  b4 {[%clk 0:00:31]} 0-1


[Site "https://www.chess.com"]

[Event "Titled Tuesday Blitz February 22 Early 2022"]
[White "Ambartsumova, Karina"]
[Black "Gormally, Daniel W"]
[WhiteFideId "4166299"]
[BlackFideId "406465"]
[WhiteElo "2262"]
[BlackElo "2543"]
[Result "0-1"]
[Round "06"]
[TimeControl "180+1"]
[Date "2022.02.22"]
[WhiteClock "0:00:10"]
[BlackClock "0:00:31"]

1. d4 {[%clk 0:02:58]}  f5 {[%clk 0:02:58]} 2. Nf3 {[%clk 0:02:58]}  Nf6 {[%clk 0:02:58]} 3. g3 {[%clk 0:02:57]}  g6 {[%clk 0:02:58]} 4. Bg2 {[%clk 0:02:57]}  Bg7 {[%clk 0:02:58]} 5. O-O {[%clk 0:02:57]}  O-O {[%clk 0:02:59]} 6. b3 {[%clk 0:02:53]}  d6 {[%clk 0:02:58]} 7. Bb2 {[%clk 0:02:53]}  Qe8 {[%clk 0:02:57]} 8. c4 {[%clk 0:02:45]}  Nc6 {[%clk 0:02:53]} 9. d5 {[%clk 0:02:42]}  Nd8 {[%clk 0:02:54]} 10. Nc3 {[%clk 0:02:29]}  c6 {[%clk 0:02:53]} 11. Nd4 {[%clk 0:02:27]}  c5 {[%clk 0:02:52]} 12. Nf3 {[%clk 0:02:19]}  Nf7 {[%clk 0:02:47]} 13. Qc2 {[%clk 0:02:15]}  e5 {[%clk 0:02:42]} 14. dxe6 {[%clk 0:02:14]}  Bxe6 {[%clk 0:02:42]} 15. Rad1 {[%clk 0:02:12]}  Qe7 {[%clk 0:02:41]} 16. Rfe1 {[%clk 0:02:09]}  Rae8 {[%clk 0:02:28]} 17. Nd2 {[%clk 0:01:51]}  Ne5 {[%clk 0:02:06]} 18. Nf1 {[%clk 0:01:49]}  Nfg4 {[%clk 0:01:56]} 19. h3 {[%clk 0:01:40]}  Nxf2 {[%clk 0:01:56]} 20. Kxf2 {[%clk 0:01:39]}  f4 {[%clk 0:01:56]} 21. Kg1 {[%clk 0:01:32]}  fxg3 {[%clk 0:01:52]} 22. Nd5 {[%clk 0:01:01]}  Qf7 {[%clk 0:01:11]} 23. Nxg3 {[%clk 0:00:50]}  Qf2+ {[%clk 0:01:06]} 24. Kh2 {[%clk 0:00:28]}  Nf3+ {[%clk 0:01:04]} 25. exf3 {[%clk 0:00:28]}  Qxc2 {[%clk 0:01:04]} 26. Bxg7 {[%clk 0:00:27]}  Kxg7 {[%clk 0:00:44]} 27. Nc7 {[%clk 0:00:25]}  Bf7 {[%clk 0:00:44]} 28. Nxe8+ {[%clk 0:00:25]}  Rxe8 {[%clk 0:00:45]} 29. Rxe8 {[%clk 0:00:24]}  Bxe8 {[%clk 0:00:42]} 30. Rxd6 {[%clk 0:00:21]}  Bc6 {[%clk 0:00:42]} 31. Ne4 {[%clk 0:00:20]}  Qxa2 {[%clk 0:00:40]} 32. Kg3 {[%clk 0:00:17]}  Qb2 {[%clk 0:00:38]} 33. Re6 {[%clk 0:00:14]}  Qd4 {[%clk 0:00:36]} 34. Re7+ {[%clk 0:00:12]}  Kf8 {[%clk 0:00:34]} 35. Rxh7 {[%clk 0:00:12]}  Qe5+ {[%clk 0:00:34]} 36. Kf2 {[%clk 0:00:11]}  Qb2+ {[%clk 0:00:31]} 37. Kg3 {[%clk 0:00:12]}  Qxb3 {[%clk 0:00:31]} 38. Nxc5 {[%clk 0:00:11]}  Qe3 {[%clk 0:00:31]} 39. Ne4 {[%clk 0:00:10]}  Bxe4 {[%clk 0:00:31]} 0-1


[Site "https://www.chess.com"]